bitfinex/quotes_ETHUSD_20220112
["timestamp","ask_amount","ask_price","bid_price","bid_amount"]
[1641985140565,0.7691455,3251.1,3250.7,0.17187405]
[1641985140767,0.76915,3250.9,3250.8,0.00511581]
[1641985141173,7.05,3250.8,3249.7,7.18596298]
[1641985141469,7.05,3250.8,3249.8,0.00568424]
[1641985141774,0.76937,3250.6,3249.8,0.00568424]
[1641985141969,1.5386963,3250.3,3249.8,0.00568424]
[1641985142170,0.76938,3250.4,3249.8,0.00568424]
[1641985142631,2.91991472,3250.5,3249.8,0.00568424]
[1641985142812,0.76941,3250.4,3249.8,0.00568424]
[1641985143211,0.7694,3250.1,3249.8,0.00568424]
[1641985143613,0.7694027,3250.0,3249.8,0.00568424]
[1641985144613,3.8694027,3250.0,3249.8,0.00568424]
[1641985146368,3.8694027,3250.0,3249.8,1.00568424]
[1641985146566,3.8694027,3250.0,3249.8,0.00568424]
[1641985146767,3.8694027,3250.0,3249.9,0.00511582]
[1641985149068,3.1,3250.0,3249.9,0.00511582]
[1641985149918,3.10231946,3250.0,3249.9,0.00511582]
[1641985152226,3.87158576,3250.0,3249.9,0.00511582]
[1641985154875,3.10231946,3250.0,3249.9,0.00511582]
[1641985155270,3.10231946,3250.0,3249.9,21.24133884]
[1641985155468,3.10231946,3250.0,3249.9,22.3183026]
[1641985155668,3.10231946,3250.0,3249.9,20.23395363]
[1641985157817,3.10231946,3250.0,3249.9,2.25395363]
[1641985158014,3.10231946,3250.0,3249.9,5.55595044]
[1641985158215,3.10231946,3250.0,3249.9,23.53595044]
[1641985162679,3.10231946,3250.0,3249.9,23.02811263]
[1641985167619,3.10231946,3250.0,3249.9,23.36407639]
[1641985167818,3.10231946,3250.0,3249.9,23.53595044]
[1641985172177,3.10231946,3250.0,3249.9,20.06207958]
[1641985172623,3.10231946,3250.0,3249.9,18.76207958]
[1641985172825,3.10231946,3250.0,3249.9,0.00511582]
[1641985173326,5.41041476,3250.0,3249.9,0.00511582]
[1641985174359,3.10231946,3250.0,3249.9,0.00511582]
[1641985174824,3.10173959,3250.0,3249.9,0.00511582]
[1641985177481,5.85173959,3250.0,3249.9,0.00511582]
[1641985178483,8.60173959,3250.0,3249.9,0.00511582]
[1641985180527,11.25173959,3250.0,3249.9,0.00511582]
[1641985182339,0.76954,3249.7,3249.4,0.00795793]
[1641985183440,1.38922099,3249.6,3249.3,0.9843099]
[1641985183663,1.539378,3249.5,3249.3,0.9843099]
[1641985184866,1.5393576,3249.4,3249.3,0.9843099]
[1641985186070,1.539378,3249.5,3249.3,0.9843099]
[1641985186470,1.539378,3249.5,3249.4,0.3]
[1641985187726,1.539378,3249.5,3249.3,0.9843099]
[1641985188125,0.769688,3249.5,3249.4,0.3]
[1641985188526,0.769688,3249.5,3249.3,0.9843099]
[1641985188728,1.5391334,3249.4,3249.3,0.9843099]
[1641985195627,1.54091589,3249.5,3249.3,0.9843099]
[1641985196332,0.77142589,3249.5,3249.3,0.9843099]
[1641985196733,0.7695096,3249.4,3249.3,0.9843099]
[1641985200668,10.55324257,3249.4,3249.3,0.9843099]
[1641985201271,12.86245257,3249.4,3249.3,0.9843099]
[1641985201470,3.0787196,3249.4,3249.3,0.9843099]
[1641985202623,6.0733808,3249.4,3249.3,0.9843099]
[1641985203022,3.3787196,3249.4,3249.3,0.9843099]
[1641985203221,11.5787196,3249.4,3249.3,0.9843099]
[1641985205626,14.668862,3249.4,3249.3,0.9843099]
[1641985206272,0.76977,3248.9,3248.3,6.11]
[1641985206477,0.76977,3248.6,3248.3,6.11]
[1641985206675,0.76977,3248.6,3248.4,0.00568424]
[1641985206880,3.90583937,3248.6,3248.4,0.00568424]
[1641985207074,3.90583937,3248.6,3247.9,0.00852635]
[1641985207075,3.90059756,3248.6,3247.9,0.00852635]
[1641985207274,0.76977,3248.6,3247.9,0.00852635]
[1641985207578,0.76979,3248.3,3247.9,0.00852635]
[1641985208177,0.76979,3248.3,3247.9,1.30852635]
[1641985208576,0.76979,3248.3,3248.0,0.00795793]
[1641985208879,1.5395419,3248.3,3248.0,0.00795793]
[1641985209482,1.5395419,3248.3,3248.2,0.954732]
[1641985209922,1.5395419,3248.3,3248.2,0.96155308]
[1641985209923,1.54128229,3248.3,3248.2,0.96155308]
[1641985210122,5.39128229,3248.3,3248.2,0.96155308]
[1641985210322,5.69128229,3248.3,3248.2,0.96155308]
[1641985210922,5.39128229,3248.3,3248.2,0.96155308]
[1641985211122,9.29128229,3248.3,3248.2,0.96155308]
[1641985211528,5.39128229,3248.3,3248.2,0.96155308]
[1641985214979,13.22625328,3248.3,3248.2,0.96155308]
[1641985215177,13.52625328,3248.3,3248.2,0.96155308]
[1641985215681,0.77004,3248.1,3247.8,6.96]
[1641985215881,1.52308597,3248.0,3247.8,6.96]
[1641985216080,1.52308597,3248.0,3247.9,0.00170527]
[1641985216280,4.59621005,3248.0,3247.9,0.00170527]
[1641985216579,5.33721005,3248.0,3247.9,0.00170527]
[1641985216780,5.33721005,3248.0,3247.5,0.18221181]
[1641985216781,0.77019,3247.9,3247.5,0.18221181]
[1641985216981,1.07023,3247.6,3247.0,6.11]
[1641985217179,3.57807019,3247.5,3247.0,6.11]
[1641985217436,3.57807019,3247.5,3246.5,10.24993571]
[1641985217630,8.25,3247.4,3246.5,10.24993571]
[1641985217829,0.77029,3247.2,3246.5,0.18221181]
[1641985218026,2.31085,3247.2,3247.0,0.00511582]
[1641985218227,4.12028,3247.1,3247.0,0.00511582]
[1641985218827,4.12028,3247.1,3247.0,0.00321242]
[1641985219028,7.18093615,3247.1,3247.0,0.00321242]
[1641985219230,3.82028,3247.1,3247.0,0.00321242]
[1641985220033,0.7720196,3247.1,3247.0,0.00321242]
[1641985221289,0.0017396,3247.1,3247.0,0.00321242]
[1641985221489,0.0017396,3247.1,3247.0,0.17508647]
[1641985223391,0.0017396,3247.1,3247.0,2.90974351]
[1641985223691,0.0017396,3247.1,3247.0,3.90974351]
[1641985224825,0.76997,3247.6,3247.0,3.90974351]
[1641985225021,0.7699668,3247.6,3247.1,1.3]
[1641985225226,0.7699668,3247.6,3247.1,1.60264399]
[1641985225425,0.7699668,3247.6,3247.2,0.00207557]
[1641985225622,0.7716696,3247.8,3247.2,0.00207557]
[1641985226023,0.0017396,3247.8,3247.2,0.00207557]
[1641985226426,0.0017396,3247.8,3247.1,0.00264399]
[1641985226729,3.1017396,3247.8,3247.1,0.00264399]
[1641985227327,0.769939,3247.7,3247.1,0.00264399]
[1641985227730,0.769939,3247.7,3247.1,1.00264399]
[1641985227928,0.769939,3247.7,3247.2,2.67588293]
[1641985228227,0.769939,3247.7,3247.3,0.00150715]
[1641985228674,0.769939,3247.7,3247.2,0.00207557]
[1641985228875,0.769939,3247.7,3247.1,0.00264399]
[1641985229677,0.7699717,3247.5,3247.1,0.00264399]
[1641985230877,0.77004,3247.3,3247.1,0.00264399]
[1641985231080,0.77004,3247.3,3247.0,0.30321242]
[1641985231280,0.77004,3247.3,3247.1,0.00264399]
[1641985232325,0.77004,3247.3,3247.0,0.00321242]
[1641985232520,0.7700137,3247.4,3247.0,0.00321242]
[1641985233722,0.77003,3247.3,3247.0,0.00321242]
[1641985234825,0.7700137,3247.4,3247.0,0.00321242]
[1641985235022,0.7700137,3247.4,3247.0,1.22155949]
[1641985235428,0.7700137,3247.4,3247.1,0.00264399]
[1641985236272,0.77002,3247.3,3247.1,0.00264399]
[1641985236673,0.77002,3247.3,3247.0,0.00321242]
[1641985238098,0.7700137,3247.4,3247.0,0.00321242]
[1641985238276,0.7699603,3247.5,3247.0,0.00321242]
[1641985240116,0.7699603,3247.5,3246.8,0.00434926]
[1641985240726,3.1,3247.8,3246.8,0.00434926]
[1641985240916,3.1,3247.8,3246.8,0.91722331]
[1641985241119,3.1,3247.8,3246.9,3.10898314]
[1641985241319,3.1,3247.8,3246.9,3.11276398]
[1641985241519,3.1,3247.8,3247.0,1.00321242]
[1641985241724,3.1,3247.8,3247.1,3.88574354]
[1641985241922,3.1,3247.8,3247.2,0.50783781]
[1641985242222,3.1,3247.8,3247.7,1.40137214]
[1641985242621,3.10133497,3247.8,3247.7,1.40137214]
[1641985242823,3.10133497,3247.8,3247.7,1.70137214]
[1641985243670,3.10133497,3247.8,3247.7,0.3]
[1641985243869,3.10133497,3247.8,3247.3,0.30150715]
[1641985244071,1.5398508,3247.7,3247.3,0.30150715]
[1641985244271,1.5398508,3247.7,3247.4,0.00093872]
[1641985244671,1.56036511,3247.6,3247.3,0.00150715]
[1641985245173,1.5398508,3247.7,3247.3,0.00150715]
[1641985245672,0.7699208,3247.7,3247.3,0.00150715]
[1641985245883,3.10133497,3247.8,3247.3,0.00150715]
[1641985247082,3.10133497,3247.8,3247.3,1.00150715]
[1641985247326,3.10133497,3247.8,3247.4,2.7080269]
[1641985247521,3.10133497,3247.8,3247.4,3.00896562]
[1641985247924,3.10133497,3247.8,3247.4,3.0207908]
[1641985248527,3.10133497,3247.8,3247.4,3.0344332]
[1641985249224,3.10133497,3247.8,3247.4,0.30093872]
[1641985249425,3.10133497,3247.8,3247.4,0.00093872]
[1641985249727,3.10133497,3247.8,3247.3,1.00150715]
[1641985249925,3.10133497,3247.8,3247.4,2.85427548]
[1641985250125,3.10133497,3247.8,3247.5,1.0]
[1641985250926,3.10133497,3247.8,3247.6,2.68863999]
[1641985251178,3.10133497,3247.8,3247.7,1.3]
[1641985251375,3.10133497,3247.8,3247.7,0.3]
[1641985251573,3.10133497,3247.8,3247.5,1.3]
[1641985252779,3.10133497,3247.8,3247.6,2.68141068]
[1641985253179,3.10133497,3247.8,3247.7,1.0]
[1641985253682,3.10133497,3247.8,3247.7,9.50865176]
[1641985253876,3.10133497,3247.8,3247.7,9.84685176]
[1641985254676,3.10133497,3247.8,3247.7,10.95842268]
[1641985254930,3.10133497,3247.8,3247.7,29.60244145]
[1641985255128,3.10133497,3247.8,3247.7,26.70666374]
[1641985255729,4.73685,3249.3,3247.7,25.6074574]
[1641985256029,0.77752793,3249.2,3248.3,0.3]
[1641985256239,0.77752793,3249.2,3248.4,0.17187405]
[1641985256433,0.00738951,3249.1,3248.4,0.17187405]
[1641985256836,0.00682108,3249.0,3248.7,1.17215327]
[1641985257134,0.00625266,3248.9,3248.7,1.47215327]
[1641985257535,0.00568424,3248.8,3248.7,1.47215327]
[1641985258334,0.00568424,3248.8,3248.7,1.80811703]
[1641985258581,0.00568424,3248.8,3248.7,9.95872303]
[1641985258981,0.00568424,3248.8,3248.7,5.85872303]
[1641985259482,0.00568424,3248.8,3248.7,2.80811703]
[1641985259683,0.00568424,3248.8,3248.7,1.80811703]
[1641985259882,0.00568424,3248.8,3248.7,2.47215327]
[1641985260082,0.00568424,3248.8,3248.7,1.47215327]
[1641985261393,0.00568424,3248.8,3248.7,4.02215327]
[1641985261586,0.00568424,3248.8,3248.7,5.02215327]
[1641985262422,0.00568424,3248.8,3248.7,2.47215327]
[1641985262622,0.00568424,3248.8,3248.7,1.47215327]
[1641985262828,0.00568424,3248.8,3248.7,4.45756355]
[1641985263024,0.00568424,3248.8,3248.7,5.45756355]
[1641985263224,0.00568424,3248.8,3248.7,2.47215327]
[1641985263658,0.00568424,3248.8,3248.7,1.47215327]
[1641985265624,0.00568424,3248.8,3248.7,4.18829392]
[1641985266077,0.00568424,3248.8,3248.7,5.18829392]
[1641985266281,0.00568424,3248.8,3248.7,2.47215327]
[1641985266685,0.00568424,3248.8,3248.7,1.47215327]
[1641985266900,0.00568424,3248.8,3248.7,4.68899579]
[1641985267084,0.00568424,3248.8,3248.7,7.84353357]
[1641985267281,0.00568424,3248.8,3248.7,4.92669105]
[1641985267481,0.00568424,3248.8,3248.7,12.00474606]
[1641985269590,0.00568424,3248.8,3248.7,30.02216759]
[1641985269829,0.00568424,3248.8,3248.7,31.09813057]
[1641985271329,3.1,3249.0,3248.9,18.74927]
[1641985271330,1.03661824,3249.0,3248.9,18.74927]
[1641985271529,0.74596176,3249.0,3248.9,20.82031964]
[1641985271733,0.7470986,3249.0,3248.9,20.82031964]
[1641985271929,0.7470986,3249.0,3248.9,21.14837465]
[1641985272233,5.556e-05,3249.0,3248.9,21.14837465]
[1641985272430,0.76912,3251.4,3249.9,1.5382553]
[1641985272631,0.76912,3251.4,3250.0,4.98308267]
[1641985272829,0.01023163,3250.8,3250.0,4.98308267]
[1641985273029,0.01023163,3250.8,3250.1,1.0]
[1641985273228,4.00016237,3251.6,3250.2,2.95431818]
[1641985273229,0.0096632,3250.7,3250.2,2.95431818]
[1641985273432,0.0096632,3250.7,3250.3,1.35924534]
[1641985273676,0.00909478,3250.6,3250.3,2.35924534]
[1641985274179,0.00852636,3250.5,3250.4,7.21705481]
[1641985274385,0.00852636,3250.5,3250.4,7.55301857]
[1641985274583,0.00852636,3250.5,3250.4,9.15301857]
[1641985276283,0.00852636,3250.5,3250.4,9.48107358]
[1641985276481,0.00852636,3250.5,3250.4,27.46107358]
[1641985276680,0.00852636,3250.5,3250.4,28.07394763]
[1641985276886,0.00852636,3250.5,3250.4,27.74589262]
[1641985278736,2.90852636,3250.5,3250.4,27.74589262]
[1641985278935,2.90852636,3250.5,3250.4,28.07394763]
[1641985281382,2.90852636,3250.5,3250.4,25.35689282]
[1641985283384,2.90852636,3250.5,3250.4,7.37689282]
[1641985284691,2.90852636,3250.5,3250.4,0.61287405]
[1641985284946,0.07601135,3250.4,3250.2,0.33596376]
[1641985285351,0.00738951,3250.3,3250.2,0.33596376]
[1641985285746,0.00738951,3250.3,3250.2,1.73515021]
[1641985286149,0.00738951,3250.3,3250.2,5.63515021]
[1641985286551,0.00738951,3250.3,3250.2,2.73515021]
[1641985286950,0.00738951,3250.3,3250.2,1.73515021]
[1641985287152,0.00738951,3250.3,3250.2,2.73515021]
[1641985287354,0.00738951,3250.3,3250.2,1.73515021]
[1641985287553,0.00738951,3250.3,3250.2,2.73515021]
[1641985287752,0.00738951,3250.3,3250.2,1.73515021]
[1641985287951,0.00738951,3250.3,3250.2,2.73515021]
[1641985288352,0.00738951,3250.3,3250.2,1.73515021]
[1641985288585,0.00738951,3250.3,3250.2,2.73515021]
[1641985288786,0.00738951,3250.3,3250.2,2.03515021]
[1641985288989,0.00738951,3250.3,3250.2,3.03515021]
[1641985289389,0.00738951,3250.3,3250.2,2.03515021]
[1641985289589,0.00738951,3250.3,3250.2,3.03515021]
[1641985289893,0.00738951,3250.3,3250.2,2.20702426]
[1641985290089,0.00738951,3250.3,3250.2,3.20702426]
[1641985290390,0.00738951,3250.3,3250.2,2.20702426]
[1641985290593,0.00738951,3250.3,3250.2,3.20702426]
[1641985290796,0.00738951,3250.3,3250.2,2.20702426]
[1641985290994,0.00738951,3250.3,3250.2,3.20702426]
[1641985291493,0.00738951,3250.3,3250.2,2.50702426]
[1641985291697,0.00738951,3250.3,3250.2,3.50702426]
[1641985293533,0.00738951,3250.3,3250.2,0.80783781]
[1641985293732,0.00738951,3250.3,3250.2,0.50783781]
[1641985293935,0.00738951,3250.3,3249.7,1.01055982]
[1641985293936,0.08279032,3250.2,3249.7,1.01055982]
[1641985294232,0.08279032,3250.2,3249.7,1.06217563]
[1641985294233,0.00625266,3250.1,3249.7,1.06217563]
[1641985294462,0.06114839,3250.0,3249.7,1.06217563]
[1641985294637,0.06683263,3250.0,3249.7,1.06217563]
[1641985294833,0.00511581,3249.9,3249.7,1.0644045]
[1641985295038,0.06640215,3249.9,3249.7,1.0644045]
[1641985295236,3.45454739,3249.8,3249.7,1.0644045]
[1641985295434,3.45454739,3249.8,3249.7,1.11602031]
[1641985295836,3.45454739,3249.8,3249.7,1.11824918]
[1641985296091,1.51914929,3249.8,3249.7,1.1160203]
[1641985296294,1.51914929,3249.8,3249.7,1.16763611]
[1641985296695,0.00454739,3249.8,3249.7,1.16763611]
[1641985296897,0.00454739,3249.8,3249.7,1.1676361]
[1641985297096,3.55454739,3249.8,3249.7,1.1676361]
[1641985297806,6.94139917,3249.8,3249.7,1.1676361]
[1641985297997,6.75454739,3249.8,3249.7,1.16763609]
[1641985298197,9.79628311,3249.8,3249.7,1.16763609]
[1641985298399,8.29360739,3249.8,3249.7,1.11602028]
[1641985298599,7.99360739,3249.8,3249.7,1.11602028]
[1641985298798,7.83360739,3249.8,3249.7,1.11602028]
[1641985298997,7.83360739,3249.8,3249.7,1.11824915]
[1641985299200,4.43906,3249.8,3249.7,1.11824915]
[1641985299401,4.43906,3249.8,3249.7,1.11824914]
[1641985300032,4.43906,3249.8,3249.7,1.11824913]
[1641985300033,2.9,3249.8,3249.7,1.11824913]
[1641985300440,2.9,3249.8,3249.7,1.11824912]
[1641985301137,2.9,3249.8,3249.7,1.11824911]
[1641985301340,2.9,3249.8,3249.7,1.16986491]
[1641985301539,2.9,3249.8,3249.7,1.1182491]
[1641985302141,2.9,3249.8,3249.7,1.11824909]
[1641985302541,2.9,3249.8,3249.7,1.11824908]
[1641985303142,2.9,3249.8,3249.7,1.12047795]
[1641985303342,2.9,3249.8,3249.7,1.11824908]
[1641985303580,2.9,3249.8,3249.7,1.11824907]
[1641985304582,2.9,3249.8,3249.7,1.11824906]
[1641985305492,2.9,3249.8,3249.7,5.01129726]
[1641985305686,2.9,3249.8,3249.7,6.19757448]
[1641985305887,2.9,3249.8,3249.7,6.86161072]
[1641985306286,2.9,3249.8,3249.7,8.34419109]
[1641985306690,2.9,3249.8,3249.7,8.29257528]
[1641985306888,2.9,3249.8,3249.7,8.62853904]
[1641985307731,2.9,3249.8,3249.7,26.55692323]
[1641985307930,2.9,3249.8,3249.7,26.99792323]
[1641985308331,2.9,3249.8,3249.7,9.01792323]
[1641985308733,2.9,3249.8,3249.7,8.96630742]
[1641985309532,2.9,3249.8,3249.7,8.96630741]
[1641985309732,2.9,3249.8,3249.7,8.9146916]
[1641985309935,2.9,3249.8,3249.7,12.3646916]
[1641985310469,2.9,3249.8,3249.7,30.3446916]
[1641985310638,2.9,3249.8,3249.7,30.34469159]
[1641985310934,2.9,3249.8,3249.7,30.29307578]
[1641985311190,3.7298,3251.6,3249.8,8.6]
[1641985311388,3.7298,3251.6,3251.3,1.53555742]
[1641985311587,3.3233,3251.9,3251.3,2.63465742]
[1641985311891,0.01023162,3251.6,3251.3,3.96248304]
[1641985312286,0.0096632,3251.5,3251.3,3.96248304]
[1641985312691,0.00909478,3251.4,3251.3,3.9647119]
[1641985312888,2.50909478,3251.4,3251.3,1.10132886]
[1641985313088,2.50909478,3251.4,3251.3,0.00222886]
[1641985313688,2.50909478,3251.4,3251.3,0.00445772]
[1641985313891,8.14737478,3251.4,3251.3,0.00445772]
[1641985314696,8.14737478,3251.4,3251.3,0.00668658]
[1641985314961,8.14737478,3251.4,3251.3,0.01178452]
[1641985315150,9.64238687,3251.4,3251.3,0.01178452]
[1641985315786,9.64238687,3251.4,3251.3,0.01401338]
[1641985316854,9.64238687,3251.4,3251.3,0.06785804]
[1641985317890,9.64238687,3251.4,3251.3,0.1217027]
[1641985318586,12.54238687,3251.4,3251.3,0.1217027]
[1641985318982,12.54238687,3251.4,3251.3,0.17554736]
[1641985319584,9.64238687,3251.4,3251.3,0.17554736]
[1641985319983,5.54238687,3251.4,3251.3,0.22939202]
[1641985320584,5.54238687,3251.4,3251.2,0.17187405]
[1641985320585,1.54737478,3251.4,3251.2,0.17187405]
[1641985320789,5.39344778,3251.4,3251.2,0.17187405]
[1641985320987,3.47772125,3251.3,3251.2,0.17187405]
[1641985321597,5.20834155,3251.3,3251.2,0.17187405]
[1641985321792,3.27747155,3251.3,3251.2,0.17187405]
[1641985321990,2.97747155,3251.3,3251.2,0.17187405]
[1641985322857,5.77747155,3251.3,3251.2,0.17187405]
[1641985323456,3.27747155,3251.3,3251.2,0.17187405]
[1641985325857,1.84685125,3251.3,3251.2,0.17187405]
[1641985327992,3.20349112,3251.3,3251.2,0.17187405]
[1641985329832,7.10349112,3251.3,3251.2,0.17187405]
[1641985330635,5.80349112,3251.3,3251.2,0.17187405]
[1641985332340,6.85,3251.2,3250.6,0.17187405]
[1641985332640,0.04374388,3250.8,3250.6,0.17187405]
[1641985333039,0.00511581,3250.7,3250.6,0.17187405]
[1641985333441,0.00568424,3250.7,3250.6,0.17187405]
[1641985334309,0.77494424,3250.7,3250.6,0.17187405]
[1641985334906,0.00568424,3250.7,3250.6,0.17187405]
[1641985335709,0.00568424,3250.7,3250.6,3.47187405]
[1641985335909,0.00568424,3250.7,3250.6,6.22121894]
[1641985336113,0.00568424,3250.7,3250.6,6.52121894]
[1641985337111,0.00568424,3250.7,3250.6,5.18432602]
[1641985337934,0.00568424,3250.7,3250.6,25.19368978]
[1641985338135,0.00568424,3250.7,3250.6,25.82174479]
[1641985338336,0.00568424,3250.7,3250.6,25.49368978]
[1641985338534,0.00568424,3250.7,3250.6,26.67514479]
[1641985339341,0.00568424,3250.7,3250.6,26.34708978]
[1641985340143,0.00568424,3250.7,3250.6,8.69514479]
[1641985340354,0.00568424,3250.7,3250.6,8.36708978]
[1641985340641,0.00568424,3250.7,3250.6,11.41468978]
[1641985341105,0.00568424,3250.7,3250.6,8.11468978]
[1641985341296,0.00568424,3250.7,3250.6,7.26128978]
[1641985342297,0.00568424,3250.7,3250.6,5.84883781]
[1641985344835,0.00568424,3250.7,3250.6,5.54883781]
[1641985345635,0.00568424,3250.7,3250.6,5.84883781]
[1641985345833,0.00568424,3250.7,3250.6,23.82883781]
[1641985347442,0.00568424,3250.7,3250.6,23.49287405]
[1641985347645,0.00568424,3250.7,3250.6,5.84883781]
[1641985348688,0.00568424,3250.7,3250.6,5.51287405]
[1641985348889,0.00568424,3250.7,3250.6,5.84883781]
[1641985349192,0.00568424,3250.7,3250.6,6.61778781]
[1641985349589,0.00568424,3250.7,3250.6,5.84883781]
[1641985351192,0.00568424,3250.7,3250.6,0.441]
[1641985351793,1.54414264,3250.7,3250.6,0.441]
[1641985353238,1.54414264,3250.7,3250.3,2.5156]
[1641985353444,1.53848,3250.6,3250.3,1.3]
[1641985353641,0.7692398,3250.5,3250.3,1.3]
[1641985353841,0.77321877,3250.5,3250.3,1.3]
[1641985354042,0.00341054,3250.4,3250.3,1.3]
[1641985354446,0.00341054,3250.4,3250.2,1.77441505]
[1641985354641,1.39163943,3250.3,3250.2,1.77441505]
[1641985354842,1.39448155,3250.3,3250.2,1.77441505]
[1641985355046,0.00284212,3250.3,3250.2,1.77441505]
[1641985356691,0.00284212,3250.3,3250.2,0.3]
[1641985356892,0.00284212,3250.3,3250.0,1.80783781]
[1641985357292,0.0022737,3250.2,3250.0,1.50783781]
[1641985357701,0.00170527,3250.1,3250.0,1.90770416]
[1641985357892,0.00170527,3250.1,3250.0,2.90770416]
[1641985359093,0.00170527,3250.1,3250.0,1.90770416]
[1641985360241,0.00170527,3250.1,3250.0,4.24581689]
[1641985360438,0.00170527,3250.1,3250.0,13.02278065]
[1641985360636,0.00170527,3250.1,3250.0,31.66446167]
[1641985361238,0.00170527,3250.1,3250.0,32.98986723]
[1641985361839,0.00170527,3250.1,3250.0,37.21103021]
[1641985363600,5.27e-06,3250.1,3250.0,71.87372775]
[1641985363893,5.27e-06,3250.1,3250.0,72.20178276]
[1641985364594,4.7633204,3252.1,3250.0,72.20178276]
[1641985364794,4.7633204,3252.1,3251.9,1.35789088]
[1641985364992,4.7633204,3252.1,3251.9,1.65789088]
[1641985364993,0.7688204,3252.1,3251.9,1.65789088]
[1641985368540,1.5377104,3252.1,3251.9,1.65789088]
[1641985369441,0.7688204,3252.1,3251.9,1.65789088]
[1641985370844,0.7688204,3252.1,3251.9,1.35789088]
[1641985371905,0.7688204,3252.1,3251.9,1.65789088]
[1641985372107,1.5377104,3252.1,3251.9,1.65789088]
[1641985373808,0.7688204,3252.1,3251.9,1.65789088]
[1641985374411,1.537681,3252.3,3251.9,1.65789088]
[1641985374841,0.01193689,3252.2,3251.9,1.65789088]
[1641985375245,0.01136847,3252.1,3251.9,1.65789088]
[1641985375447,0.01136847,3252.1,3252.0,6.50389725]
[1641985375652,0.80293399,3253.1,3252.9,1.47618302]
[1641985375848,0.80293399,3253.1,3252.9,2.58528302]
[1641985376047,0.80293399,3253.1,3252.9,5.53892154]
[1641985376248,3.2884,3253.7,3253.0,4.17218907]
[1641985376446,0.76856,3253.6,3253.0,1.48209273]
[1641985376649,2.30557,3254.1,3254.0,1.34319426]
[1641985376846,2.30557,3254.1,3254.0,2.19859426]
[1641985377246,9.00557,3254.1,3254.0,2.19859426]
[1641985377452,6.7,3254.1,3254.0,2.19859426]
[1641985378689,8.2370083,3254.1,3254.0,2.19859426]
[1641985379191,8.2370083,3254.1,3253.7,0.17187405]
[1641985379390,0.7685,3253.9,3253.7,0.17187405]
[1641985379590,1.53708,3253.9,3253.7,0.17187405]
[1641985379991,2.3055781,3253.9,3253.7,0.17187405]
[1641985380192,2.3055781,3253.9,3253.2,0.17187405]
[1641985380390,0.76869,3253.6,3253.2,0.17187405]
[1641985380900,0.7880664,3253.5,3253.2,0.17187405]
[1641985381091,0.7880664,3253.5,3252.4,4.5976]
[1641985381092,1.5568333,3253.5,3252.4,4.5976]
[1641985381296,1.12440257,3252.7,3251.8,5.5189]
[1641985381495,0.76881,3252.6,3252.2,1.5094224]
[1641985381698,0.78302059,3252.6,3252.2,1.5094224]
[1641985381896,0.01364216,3252.5,3252.2,1.5094224]
[1641985382333,3.07524,3253.2,3252.2,1.5094224]
[1641985382334,0.01307374,3252.4,3252.2,1.5094224]
[1641985382733,0.01250532,3252.3,3252.2,1.5094224]
[1641985382934,0.01250532,3252.3,3252.2,1.8094224]
[1641985383137,0.01250532,3252.3,3252.2,9.91457292]
[1641985383542,0.01250532,3252.3,3252.2,10.91457292]
[1641985384541,0.01250532,3252.3,3252.2,11.35557292]
[1641985385644,0.01250532,3252.3,3252.2,29.33557292]
[1641985386103,0.01250532,3252.3,3252.2,29.67153668]
[1641985386294,0.01250532,3252.3,3252.2,29.84341073]
[1641985388093,0.01250532,3252.3,3252.2,11.86341073]
[1641985388699,0.01250532,3252.3,3252.2,29.84341073]
[1641985388897,0.01250532,3252.3,3252.2,11.86341073]
[1641985390138,0.01250532,3252.3,3252.2,29.84341073]
[1641985391150,0.01250532,3252.3,3252.2,35.68146574]
[1641985391352,0.01250532,3252.3,3252.2,35.35341073]
[1641985391749,0.01250532,3252.3,3252.2,35.68146574]
[1641985392347,0.01250532,3252.3,3252.2,36.44994574]
[1641985392750,0.01250532,3252.3,3252.2,36.48394902]
[1641985393151,7.2455,3254.0,3252.4,1.53685]
[1641985393353,7.2455,3254.0,3252.9,0.76842]
[1641985393610,0.78129457,3254.1,3253.0,4.23193783]
[1641985393611,0.76844,3254.1,3253.0,4.23193783]
[1641985393800,0.76844,3254.1,3253.4,0.3]
[1641985394005,0.0096632,3254.0,3253.1,1.2359]
[1641985394200,0.0096632,3254.0,3253.2,2.7475802]
[1641985394400,0.00909477,3253.9,3253.2,2.7475802]
[1641985394598,0.00909477,3253.9,3253.2,4.44931999]
[1641985394800,0.00852635,3253.8,3253.3,1.0]
[1641985395223,0.00795793,3253.7,3253.4,4.23972237]
[1641985395399,0.00795793,3253.7,3253.4,4.68072237]
[1641985395604,0.7684432,3254.0,3253.5,4.23596376]
[1641985395605,0.0073895,3253.6,3253.5,4.23596376]
[1641985396209,0.0073895,3253.6,3253.5,0.33596376]
[1641985397739,0.0073895,3253.6,3253.5,0.25788871]
[1641985399948,0.0073895,3253.6,3253.5,3.10788871]
[1641985400149,0.0073895,3253.6,3253.5,6.84497536]
[1641985400350,0.0073895,3253.6,3253.5,1.25788871]
[1641985400573,0.0073895,3253.6,3253.5,1.69888871]
[1641985401194,0.0073895,3253.6,3253.5,1.441]
[1641985401395,0.0073895,3253.6,3253.5,2.2096]
[1641985401593,0.0073895,3253.6,3253.4,1.82209647]
[1641985401997,0.00682108,3253.5,3253.4,1.82209647]
[1641985409190,0.77537108,3253.5,3253.4,1.82209647]
[1641985409391,0.77537108,3253.5,3253.4,1.99397052]
[1641985409992,0.00682108,3253.5,3253.4,1.99397052]
[1641985412837,0.31442108,3253.5,3253.4,1.99397052]
[1641985417806,0.31442108,3253.5,3253.4,0.17187405]
[1641985418195,0.31442108,3253.5,3252.9,4.4973]
[1641985418395,0.76867,3253.2,3252.9,4.4973]
[1641985418637,1.5373291,3253.2,3252.5,1.1305]
[1641985418797,0.04519391,3253.0,3252.8,1.17708616]
[1641985419197,0.00341054,3252.9,3252.8,1.17708616]
[1641985419495,0.00341054,3252.9,3252.8,1.47708616]
[1641985421747,0.00341054,3252.9,3252.8,1.17708616]
[1641985421949,0.31101054,3252.9,3252.8,1.17708616]
[1641985423250,0.31101054,3252.9,3252.8,1.34896021]
[1641985424939,0.31101054,3252.9,3252.8,1.64896021]
[1641985425100,0.31101054,3252.9,3252.8,0.47187405]
[1641985425502,0.31101054,3252.9,3252.8,0.17187405]
[1641985427350,1.5881228,3252.8,3251.8,0.441]
[1641985427546,0.82932492,3252.5,3251.6,8.70553874]
[1641985427746,0.76887,3252.5,3251.9,0.0022737]
[1641985427946,0.00284212,3252.8,3251.9,0.0022737]
[1641985428152,0.3076,3252.4,3251.9,0.0022737]
[1641985428348,0.3076,3252.4,3251.9,1.43255931]
[1641985428548,0.7688725,3252.2,3251.9,1.43255931]
[1641985428748,0.7688725,3252.2,3252.0,0.00170527]
[1641985428947,0.3076,3252.4,3252.0,0.00170527]
[1641985430049,1.0763786,3252.4,3252.0,0.00170527]